bitfinex/quotes_SOLUSD_20250616
["timestamp","ask_amount","ask_price","bid_price","bid_amount"]
[1750104036812,18.39938079,157.84,157.83,0.1349]
[1750104037017,24.73491044,157.84,157.83,0.1349]
[1750104037218,18.39914593,157.84,157.83,0.1349]
[1750104037417,16.06348052,157.84,157.83,0.1349]
[1750104037637,4.67191575,157.84,157.83,6.47083106]
[1750104037808,4.67233869,157.86,157.83,6.47083106]
[1750104038214,16.06390346,157.86,157.83,0.1349]
[1750104038431,11.39156477,157.85,157.83,0.1349]
[1750104039329,26.0,157.84,157.83,0.1349]
[1750104039640,42.06348608,157.84,157.83,0.1349]
[1750104040038,44.39959895,157.84,157.83,0.1349]
[1750104040216,33.00803418,157.84,157.83,0.1349]
[1750104040528,39.34356383,157.84,157.83,0.1349]
[1750104040837,24.7351286,157.84,157.83,0.1349]
[1750104041940,22.39901573,157.84,157.83,0.1349]
[1750104042342,17.72709442,157.84,157.83,0.1349]
[1750104042528,22.39762857,157.84,157.83,0.1349]
[1750104042726,48.39762857,157.84,157.83,0.1349]
[1750104043146,50.73355456,157.84,157.83,0.1349]
[1750104044327,50.87571613,157.84,157.83,0.1349]
[1750104044551,107.60536499,157.84,157.83,0.1349]
[1750104044845,87.90502627,157.84,157.83,0.1349]
[1750104045015,76.5134615,157.84,157.83,0.1349]
[1750104045340,76.22502627,157.84,157.83,0.1349]
[1750104045541,114.30502627,157.84,157.83,0.1349]
[1750104046024,102.9134615,157.84,157.83,0.1349]
[1750104046225,114.30502627,157.84,157.83,0.1349]
[1750104047179,114.30690057,157.84,157.83,0.1349]
[1750104047955,114.30993998,157.84,157.83,0.1349]
[1750104048572,114.31698288,157.84,157.83,0.1349]
[1750104049791,87.91698288,157.84,157.83,0.1349]
[1750104049954,114.33698288,157.84,157.83,0.1349]
[1750104050265,114.19482131,157.84,157.83,0.1349]
[1750104050648,107.32044043,157.84,157.83,0.1349]
[1750104050852,120.19467796,157.84,157.83,0.1349]
[1750104052170,93.77467796,157.84,157.83,0.1349]
[1750104052384,114.32425848,157.84,157.83,0.1349]
[1750104053078,87.92425848,157.84,157.83,0.1349]
[1750104053279,114.32425848,157.84,157.83,0.1349]
[1750104053668,114.32622976,157.84,157.83,0.1349]
[1750104056128,120.17664924,157.84,157.83,0.1349]
[1750104056283,114.32622976,157.84,157.83,0.1349]
[1750104056604,120.18605386,157.84,157.83,0.1349]
[1750104056906,108.79448909,157.84,157.83,0.1349]
[1750104057114,98.25394031,157.84,157.83,0.1349]
[1750104057319,108.79502291,157.84,157.83,0.1349]
[1750104057620,102.94460343,157.84,157.83,0.1349]
[1750104058804,110.54171287,157.84,157.83,0.1349]
[1750104059292,116.39213235,157.84,157.83,0.1349]
[1750104059495,123.98730383,157.84,157.83,0.1349]
[1750104059699,118.13688435,157.84,157.83,0.1349]
[1750104060188,118.13619485,157.84,157.83,0.1349]
[1750104061017,123.99978711,157.84,157.83,0.1349]
[1750104061816,6.73456157,157.83,157.7,88.1035]
[1750104062001,26.0,157.77,157.73,7.59710944]
[1750104062189,7.02827727,157.76,157.73,13.93680325]
[1750104062385,26.0,157.77,157.73,13.93680325]
[1750104062591,4.68659405,157.76,157.73,13.93680325]
[1750104062785,26.0,157.77,157.73,13.93680325]
[1750104063026,4.68448127,157.76,157.74,7.59710944]
[1750104063187,4.68448127,157.76,157.75,7.59710944]
[1750104063390,19.31308684,157.79,157.74,7.59710944]
[1750104063591,4.68448127,157.78,157.74,7.59710944]
[1750104063823,4.68456032,157.77,157.74,7.59710944]
[1750104064028,4.68456032,157.77,157.73,13.93680325]
[1750104064029,4.68456032,157.76,157.73,13.93680325]
[1750104064536,4.68331991,157.76,157.73,7.59710944]
[1750104064821,7.59710944,157.74,157.7,94.44449614]
[1750104065025,12.2803318,157.74,157.7,94.44449614]
[1750104065193,7.59710944,157.74,157.7,94.44449614]
[1750104065400,7.59710944,157.72,157.7,82.1]
[1750104065632,4.68322236,157.73,157.66,95.91510944]
[1750104065633,12.27952487,157.71,157.66,95.91510944]
[1750104065818,7.59710944,157.7,157.66,94.66065073]
[1750104066237,7.59710944,157.7,157.66,102.25776017]
[1750104066434,7.59710944,157.71,157.66,102.25776017]
[1750104066737,4.68241543,157.72,157.68,7.59710944]
[1750104067112,12.27952487,157.72,157.66,110.51755799]
[1750104067316,12.27952487,157.71,157.66,118.11466743]
[1750104067534,7.59710944,157.71,157.66,118.11466743]
[1750104067840,12.27952487,157.71,157.66,118.11466743]
[1750104068240,12.2729719,157.71,157.66,118.11466743]
[1750104068533,4.67586246,157.71,157.67,7.59710944]
[1750104068724,12.2729719,157.72,157.67,7.59710944]
[1750104069310,12.2729719,157.72,157.66,110.51755799]
[1750104069513,12.2729719,157.72,157.66,118.11466743]
[1750104069514,7.59710944,157.71,157.66,118.11466743]
[1750104069817,12.2729719,157.72,157.67,7.59710944]
[1750104070019,12.2729719,157.72,157.68,7.59710944]
[1750104070645,12.2729719,157.72,157.69,6.34155621]
[1750104070822,12.2729719,157.72,157.68,6.3417916]
[1750104071137,7.59710944,157.69,157.66,6.34259118]
[1750104072217,7.59710944,157.69,157.65,6.34311893]
[1750104072423,7.59710944,157.67,157.64,6.34347121]
[1750104073641,7.59710944,157.66,157.63,6.34388775]
[1750104074329,7.59710944,157.65,157.62,6.34425438]
[1750104074747,7.59710944,157.66,157.62,6.34425438]
[1750104075048,7.59710944,157.66,157.62,13.94136382]
[1750104076147,7.59710944,157.65,157.61,88.4446425]
[1750104076447,7.59710944,157.63,157.6,6.3450524]
[1750104076945,7.59710944,157.64,157.6,6.3450524]
[1750104078551,6.48540178,157.65,157.6,6.3450524]
[1750104078733,7.59710944,157.64,157.6,6.3450524]
[1750104079531,26.0,157.62,157.58,6.34588928]
[1750104079731,7.59710944,157.61,157.58,6.34588928]
[1750104079934,33.59710944,157.62,157.58,6.34588928]
[1750104080331,7.59710944,157.6,157.56,7.59710944]
[1750104081149,0.14216157,157.65,157.59,7.59710944]
[1750104081461,26.0,157.64,157.61,7.59710944]
[1750104081932,26.0,157.64,157.6,6.34507198]
[1750104082132,26.0,157.64,157.61,7.59710944]
[1750104082355,26.0,157.64,157.6,13.94218142]
[1750104082661,7.59710944,157.63,157.58,7.59710944]
[1750104083036,7.59710944,157.62,157.58,7.59710944]
[1750104083636,7.59710944,157.62,157.56,7.59710944]
[1750104083637,7.59710944,157.61,157.56,7.59710944]
[1750104084960,7.59710944,157.61,157.57,7.59710944]
[1750104085160,33.59710944,157.62,157.57,7.59710944]
[1750104085537,33.59710944,157.62,157.55,6.34719136]
[1750104085538,33.59710944,157.62,157.58,7.59710944]
[1750104085846,7.59710944,157.65,157.6,7.59710944]
[1750104086055,26.0,157.64,157.6,7.59710944]
[1750104086461,26.0,157.63,157.6,7.59710944]
[1750104086765,26.0,157.63,157.59,13.94268974]
[1750104086975,33.59710944,157.63,157.59,13.94268974]
[1750104087144,33.59710944,157.63,157.59,6.3455803]
[1750104087471,33.59710944,157.63,157.59,13.94268974]
[1750104088277,7.59710944,157.62,157.55,6.34719136]
[1750104088433,7.59710944,157.62,157.55,22.21516977]
[1750104088775,33.59710944,157.63,157.58,7.59710944]
[1750104089245,33.59710944,157.63,157.58,13.9428244]
[1750104089972,33.59710944,157.63,157.59,7.59710944]
[1750104090546,7.73927101,157.62,157.56,6.34678852]
[1750104090749,7.59710944,157.61,157.57,7.59710944]
[1750104091046,7.73927101,157.62,157.57,7.59710944]
[1750104091573,7.73927101,157.62,157.55,6.34719136]
[1750104091574,14.08383888,157.62,157.55,6.34719136]
[1750104091916,14.08383888,157.62,157.56,7.59710944]
[1750104091917,7.59710944,157.61,157.56,7.59710944]
[1750104092871,13.94206656,157.61,157.56,13.94386245]
[1750104094242,13.94206656,157.61,157.54,6.5808]
[1750104094243,13.94206656,157.61,157.55,6.34719136]
[1750104094451,13.94206656,157.61,157.56,7.59710944]
[1750104095253,7.59710944,157.61,157.56,7.59710944]
[1750104095452,13.94189828,157.61,157.57,7.59710944]
[1750104096986,13.94189828,157.61,157.55,6.34707567]
[1750104097197,4.62259287,157.62,157.6,7.59710944]
[1750104097355,56.96878437,157.66,157.61,7.59710944]
[1750104097557,26.0,157.65,157.62,7.59710944]
[1750104097855,13.45710944,157.67,157.63,7.59710944]
[1750104098081,39.45710944,157.67,157.63,7.59710944]
[1750104098285,26.0,157.64,157.6,7.59710944]
[1750104098495,7.59710944,157.62,157.58,7.59710944]
[1750104098991,13.94149602,157.62,157.58,7.59710944]
[1750104099356,7.73927101,157.63,157.58,13.94305794]
[1750104099556,0.14216157,157.63,157.59,7.59710944]
[1750104099781,6.48616881,157.63,157.59,7.59710944]
[1750104099985,14.08327825,157.63,157.59,7.59710944]
[1750104100387,14.08327825,157.63,157.58,6.3459485]
[1750104100772,14.08327825,157.63,157.58,13.94305794]
[1750104101569,7.59710944,157.62,157.55,22.21516977]
[1750104101766,7.59710944,157.62,157.58,7.59710944]
[1750104101969,7.59710944,157.62,157.55,22.21516977]
[1750104102189,7.59710944,157.61,157.55,6.34719136]
[1750104102371,7.59710944,157.61,157.56,7.59710944]
[1750104102372,26.0,157.6,157.56,7.59710944]
[1750104103260,26.0,157.6,157.56,13.94370805]
[1750104104573,26.0,157.6,157.56,6.34659861]
[1750104104776,26.0,157.6,157.56,13.94370805]
[1750104104977,26.0,157.6,157.57,7.59710944]
[1750104105504,26.0,157.6,157.57,13.94334129]
[1750104105668,0.14216157,157.63,157.58,7.59710944]
[1750104105872,12.24577,157.62,157.58,7.59710944]
[1750104106081,4.64866056,157.61,157.58,7.59710944]
[1750104106282,4.64866056,157.61,157.57,6.34623185]
[1750104106604,4.64866056,157.61,157.57,13.94334129]
[1750104106805,4.64872244,157.6,157.58,7.59710944]
[1750104106963,9.92147066,157.62,157.58,7.59710944]
[1750104106964,4.64872244,157.61,157.58,13.94272487]
[1750104107163,4.64872244,157.6,157.58,13.94272487]
[1750104107391,4.64872244,157.61,157.58,13.94272487]
[1750104107692,4.64872244,157.62,157.58,6.34561543]
[1750104107864,4.64872244,157.61,157.58,13.94272487]
[1750104108196,2.32841082,157.62,157.58,13.94272487]
[1750104108197,4.64872244,157.6,157.58,13.94272487]
[1750104108377,4.64872244,157.59,157.58,13.94272487]
[1750104108768,7.82745539,157.7,157.58,13.94272487]
[1750104108769,1.5975,157.74,157.66,26.0]
[1750104109078,1.5975,157.74,157.63,18.64964886]
[1750104109079,7.59710944,157.7,157.65,7.59710944]
[1750104109392,14.58701593,157.69,157.65,7.59710944]
[1750104109577,4.65993766,157.68,157.65,7.59710944]
[1750104109788,2.32996883,157.7,157.65,7.59710944]
[1750104109789,9.92707827,157.7,157.65,7.59710944]
[1750104109975,4.65944395,157.69,157.65,7.59710944]
[1750104110174,4.65944395,157.68,157.65,7.59710944]
[1750104110371,4.65932327,157.67,157.65,7.59710944]
[1750104110724,14.58168316,157.7,157.66,7.59710944]
[1750104110904,4.66298287,157.69,157.66,7.59710944]
[1750104111216,4.66298287,157.68,157.66,7.59710944]
[1750104111520,4.66298287,157.67,157.66,7.59710944]
[1750104111820,4.66298287,157.69,157.66,7.59710944]
[1750104112032,4.66298287,157.68,157.66,7.59710944]
[1750104112206,4.66298287,157.67,157.66,7.59710944]
[1750104112387,4.66298287,157.69,157.66,7.59710944]
[1750104112591,4.66188179,157.68,157.66,7.59710944]
[1750104112820,4.66188179,157.67,157.66,7.59710944]
[1750104112998,4.66188179,157.68,157.66,7.59710944]
[1750104113202,4.66188179,157.67,157.66,7.59710944]
[1750104113710,4.66188179,157.67,157.65,7.59710944]
[1750104113889,8.67245507,157.69,157.65,7.59710944]
[1750104114093,4.66331915,157.68,157.65,7.59710944]
[1750104114321,4.66331915,157.67,157.65,7.59710944]
[1750104114616,4.66235369,157.66,157.63,6.34397005]
[1750104114818,4.66151514,157.65,157.61,7.59710944]
[1750104114993,4.66151514,157.64,157.62,7.59710944]
[1750104115199,8.61018902,157.67,157.63,7.59710944]
[1750104115393,8.61018902,157.67,157.62,6.3443278]
[1750104115394,4.66016576,157.66,157.65,7.59710944]
[1750104115934,6.99019557,157.69,157.65,7.59710944]
[1750104116102,4.66016576,157.68,157.67,7.59710944]
[1750104117298,4.66263053,157.68,157.67,13.93947006]
[1750104117712,4.66248103,157.7,157.67,13.93947006]
[1750104117914,4.66248103,157.69,157.68,7.59710944]
[1750104118103,4.66248103,157.7,157.68,15.19421888]
[1750104118302,2.33124798,157.74,157.69,7.59710944]
[1750104118512,4.66273839,157.73,157.72,7.59710944]
[1750104118897,4.66273839,157.73,157.71,7.59710944]
[1750104119097,2.33124798,157.74,157.72,6.34034998]
[1750104119311,4.66315915,157.73,157.72,6.34034998]
[1750104120335,4.66315915,157.73,157.72,13.93745942]
[1750104120535,4.66623773,157.73,157.72,13.93745942]
[1750104121229,9.26429387,157.76,157.72,13.93745942]
[1750104121230,13.9305316,157.76,157.72,13.93745942]
[1750104121411,13.9305316,157.76,157.74,7.59710944]
[1750104121732,9.26429387,157.76,157.75,7.59710944]
[1750104122019,4.66623773,157.78,157.75,7.59710944]
[1750104122220,4.66623773,157.78,157.76,7.59710944]
[1750104122611,4.66623773,157.78,157.75,7.59710944]
[1750104123439,4.66289252,157.78,157.75,13.9358848]
[1750104124109,4.66289252,157.77,157.75,13.9358848]
[1750104124428,4.66289252,157.78,157.75,13.9358848]
[1750104124606,4.66289252,157.77,157.75,13.9358848]
[1750104124801,4.66289252,157.78,157.75,6.33877536]
[1750104125108,26.0,157.79,157.76,7.59710944]
[1750104125307,26.0,157.79,157.76,13.93571756]
[1750104126330,4.65154941,157.78,157.76,6.33860812]
[1750104126542,4.65154941,157.78,157.73,6.33957837]
[1750104126705,7.59710944,157.77,157.73,13.93668781]
[1750104126904,7.59710944,157.77,157.73,6.33957837]
[1750104127135,7.59710944,157.77,157.73,13.93668781]
[1750104127313,0.14216157,157.77,157.73,13.93668781]
[1750104127641,4.65154941,157.78,157.73,6.33957837]
[1750104127806,4.65154941,157.78,157.74,7.59710944]
[1750104128010,12.24865885,157.78,157.74,7.59710944]
[1750104128812,12.24865885,157.78,157.74,13.93644567]
[1750104129025,7.73927101,157.77,157.73,7.59710944]
[1750104129234,9.31937101,157.77,157.72,7.59710944]
[1750104129460,9.31937101,157.77,157.73,7.59710944]
[1750104129629,7.59710944,157.76,157.72,7.59710944]
[1750104129936,13.96382441,157.77,157.72,7.59710944]
[1750104130513,7.59710944,157.76,157.7,6.34115409]
[1750104130738,7.59710944,157.76,157.72,7.59710944]
[1750104131753,13.93587335,157.76,157.72,7.59710944]
[1750104132935,12.7016021,157.77,157.72,13.93742044]
[1750104133241,0.14216157,157.71,157.65,7.59710944]
[1750104133554,7.59710944,157.7,157.65,7.59710944]
[1750104133718,7.59710944,157.7,157.65,13.94016052]
[1750104133920,7.59710944,157.7,157.66,7.59710944]
[1750104134515,13.93831554,157.7,157.65,6.34305108]
[1750104135019,13.93831554,157.7,157.66,7.59710944]
[1750104135238,8.00015793,157.71,157.66,7.59710944]
[1750104135437,15.59726737,157.71,157.66,7.59710944]
[1750104135950,15.59726737,157.71,157.66,13.93970007]
[1750104136741,15.59726737,157.71,157.66,7.59710944]
[1750104137324,15.59726737,157.71,157.66,13.93979522]
[1750104138446,7.59710944,157.7,157.66,7.59710944]
[1750104138960,6.2677,157.74,157.66,6.34272018]
[1750104139146,11.89750906,157.76,157.73,7.59710944]
[1750104139644,0.14216157,157.75,157.73,7.59710944]
[1750104139844,4.64080906,157.75,157.74,7.59710944]
[1750104140027,5.74,157.76,157.74,7.59710944]
[1750104140228,5.74,157.76,157.68,9.24110944]
[1750104140229,31.74,157.76,157.75,7.59710944]
[1750104140451,36.38053953,157.76,157.74,7.59710944]
[1750104140621,31.74,157.76,157.74,7.59710944]
[1750104146851,31.74,157.76,157.73,7.59710944]
[1750104147052,31.74,157.76,157.74,7.59710944]
[1750104152159,31.74,157.76,157.73,13.9370263]
[1750104152348,31.74,157.76,157.74,7.59710944]
[1750104153060,4.6605813,157.75,157.74,7.59710944]
[1750104153242,4.6605813,157.75,157.73,7.59710944]
[1750104154055,12.40051121,157.74,157.67,6.2671]
[1750104154245,7.59710944,157.7,157.66,13.93955985]
[1750104154458,12.25834964,157.69,157.65,7.59710944]
[1750104154656,7.59710944,157.69,157.64,13.94052343]
[1750104155132,18.60042125,157.68,157.63,7.59710944]
[1750104155328,12.25834964,157.67,157.63,7.59710944]
[1750104155553,12.25834964,157.66,157.62,7.59710944]
[1750104155735,4.65998668,157.65,157.62,7.59710944]
[1750104156131,4.65998668,157.66,157.63,7.59710944]
[1750104157441,4.65998668,157.66,157.63,13.94106851]
[1750104157845,4.65998668,157.67,157.64,7.59710944]
[1750104158354,4.65846944,157.68,157.66,7.59710944]
[1750104158563,4.65846944,157.68,157.67,7.59710944]
[1750104159038,6.98782537,157.7,157.67,7.59710944]
[1750104159238,4.65846944,157.69,157.67,7.59710944]
[1750104159440,26.0,157.71,157.67,7.59710944]
[1750104159441,4.65846944,157.7,157.67,7.59710944]
[1750104159739,4.65846944,157.69,157.67,7.59710944]
[1750104159957,4.65846944,157.7,157.68,7.59710944]
[1750104160150,4.65774575,157.7,157.68,7.59710944]
[1750104160438,4.65774575,157.71,157.68,7.59710944]
[1750104160639,4.65774575,157.7,157.68,7.59710944]
[1750104160832,4.65774575,157.69,157.68,7.59710944]
[1750104161029,4.65774575,157.7,157.68,7.59710944]
[1750104161263,4.65774575,157.69,157.68,7.59710944]
[1750104161441,4.65774575,157.7,157.68,7.59710944]
[1750104161641,4.65774575,157.71,157.68,7.59710944]
[1750104161842,4.65774575,157.7,157.68,7.59710944]
[1750104162163,4.65774575,157.69,157.68,7.59710944]
[1750104162365,4.65774575,157.7,157.68,7.59710944]
[1750104162665,4.65774575,157.69,157.67,7.59710944]
[1750104162969,4.65807239,157.7,157.67,7.59710944]
[1750104163151,4.65807239,157.69,157.67,7.59710944]
[1750104163467,4.65807239,157.71,157.68,7.59710944]
[1750104163635,4.65807239,157.7,157.68,7.59710944]
[1750104163835,4.65807239,157.71,157.68,7.59710944]
[1750104164061,4.65807239,157.7,157.68,7.59710944]
[1750104164249,4.65807239,157.69,157.67,7.59710944]
[1750104164652,4.65807239,157.69,157.66,7.59710944]
[1750104166043,4.65807239,157.69,157.68,7.59710944]
[1750104166456,4.65549118,157.69,157.67,7.59710944]
[1750104166874,4.65549118,157.69,157.65,7.59710944]
[1750104167188,4.65549118,157.69,157.66,7.59710944]
[1750104167770,4.65549118,157.69,157.67,7.59710944]
[1750104169246,4.65549118,157.69,157.66,7.59710944]
[1750104171436,4.65957953,157.69,157.66,7.59710944]
[1750104172163,11.00127313,157.69,157.66,7.59710944]
[1750104172347,4.65957953,157.68,157.65,7.59710944]
[1750104172542,7.59710944,157.67,157.62,7.59710944]
[1750104172745,12.25668897,157.67,157.62,7.59710944]
[1750104173071,7.59710944,157.67,157.62,7.59710944]
[1750104173240,4.65957953,157.66,157.62,7.59710944]
[1750104173637,4.65957953,157.66,157.63,7.59710944]
[1750104176140,12.39885054,157.65,157.61,7.59710944]
[1750104176343,4.65957953,157.64,157.61,7.59710944]
[1750104176571,12.39885054,157.65,157.61,7.59710944]
[1750104177157,12.39705921,157.65,157.61,7.59710944]
[1750104177465,7.59710944,157.63,157.6,42.94696726]
[1750104177671,18.59777158,157.64,157.6,7.59710944]
[1750104178877,4.65709452,157.63,157.6,7.59710944]
[1750104179264,6.34356762,157.64,157.6,7.59710944]
[1750104179960,7.59710944,157.64,157.6,13.94226995]
[1750104180281,18.73727925,157.65,157.61,7.59710944]
[1750104180667,18.73727925,157.65,157.56,23.19829273]
[1750104180863,7.59710944,157.64,157.56,23.19829273]
[1750104181080,18.73727925,157.65,157.6,7.59710944]
[1750104182062,18.73727925,157.65,157.6,6.34514854]
[1750104182261,18.73727925,157.65,157.6,13.94225798]
[1750104182777,7.73927101,157.63,157.57,6.34638573]
[1750104182987,12.39248535,157.63,157.59,7.59710944]
[1750104183184,4.79537591,157.63,157.59,7.59710944]
[1750104183557,12.39248535,157.63,157.59,7.59710944]
[1750104183883,18.73678317,157.63,157.58,6.34596499]
[1750104184082,18.73678317,157.63,157.58,13.94307443]
[1750104185401,7.59710944,157.62,157.58,13.94307443]
[1750104186889,7.59710944,157.61,157.57,7.59710944]
[1750104187058,7.59710944,157.61,157.56,7.59710944]
[1750104188279,7.59710944,157.61,157.57,13.94344044]
[1750104188979,12.2588281,157.62,157.58,7.59710944]
[1750104189163,18.74521786,157.63,157.58,7.59710944]
[1750104190474,18.74521786,157.63,157.58,13.94302171]
[1750104190984,7.59710944,157.62,157.58,7.59710944]
[1750104191282,0.14216157,157.61,157.56,6.34662694]
[1750104191473,7.59710944,157.59,157.54,7.59710944]
[1750104192591,13.94277531,157.59,157.54,13.94455705]
[1750104192759,13.94277531,157.59,157.54,7.59710944]
[1750104193089,13.94277531,157.59,157.54,13.94469384]
[1750104193960,7.59710944,157.58,157.54,7.59710944]
[1750104194586,13.94326289,157.58,157.53,13.94503551]
[1750104194791,7.59710944,157.57,157.53,7.59710944]
[1750104195089,7.59710944,157.57,157.52,7.59710944]
[1750104196182,13.94361705,157.57,157.52,13.9453986]
[1750104197013,13.94361705,157.57,157.52,6.34828916]
[1750104197368,13.94361705,157.57,157.5,6.34920634]
[1750104197566,0.14216157,157.56,157.52,7.59710944]
[1750104197899,7.73927101,157.56,157.51,7.59710944]
[1750104198076,7.73927101,157.56,157.5,7.59710944]
[1750104198077,7.59710944,157.55,157.5,7.59710944]
[1750104198272,26.0,157.55,157.51,7.59710944]
[1750104198474,26.0,157.55,157.52,7.59710944]
[1750104198699,26.0,157.55,157.51,7.59710944]
[1750104199190,33.59710944,157.55,157.5,6.34910935]
[1750104199392,39.94432365,157.55,157.51,7.59710944]
[1750104199595,39.94432365,157.55,157.47,6.1232]
[1750104199596,12.25245777,157.54,157.49,7.59710944]
[1750104199779,7.59710944,157.54,157.49,7.59710944]
[1750104199979,7.59710944,157.54,157.48,6.3500127]
[1750104199980,7.59710944,157.54,157.5,7.59710944]
[1750104200376,12.24806582,157.54,157.49,7.59710944]
[1750104200691,12.24806582,157.54,157.5,7.59710944]
[1750104201395,18.59571604,157.54,157.5,7.59710944]
[1750104201696,18.59571604,157.54,157.49,6.34948051]
[1750104201897,18.59571604,157.54,157.5,7.59710944]
[1750104202273,7.59710944,157.52,157.48,7.59710944]
[1750104202771,7.73927101,157.53,157.48,7.59710944]
[1750104203303,14.0874732,157.53,157.48,7.59710944]
[1750104203592,14.0874732,157.53,157.47,6.35002147]
[1750104203783,7.59710944,157.52,157.47,6.35002147]
[1750104203983,7.59710944,157.52,157.48,7.59710944]
[1750104205067,7.59710944,157.52,157.47,6.35002147]
[1750104205267,7.59710944,157.52,157.48,7.59710944]
[1750104205896,13.94561907,157.52,157.47,6.35002147]
[1750104206075,7.59710944,157.51,157.46,6.35067533]
[1750104206273,6.34850963,157.52,157.44,6.35162601]
[1750104206274,7.59710944,157.5,157.44,6.35162601]
[1750104206487,7.59710944,157.48,157.44,6.35162601]
[1750104206691,7.59710944,157.48,157.44,13.94873545]
[1750104206887,7.59710944,157.47,157.43,7.59710944]
[1750104207075,7.59710944,157.47,157.41,6.35283654]
[1750104207283,7.59710944,157.47,157.43,7.59710944]
[1750104207486,26.0,157.49,157.41,6.35283654]
[1750104207487,7.59710944,157.48,157.44,7.59710944]
[1750104207686,26.0,157.49,157.45,7.59710944]
[1750104207894,26.0,157.49,157.46,7.59710944]
[1750104208097,26.0,157.49,157.47,7.59710944]
[1750104208293,26.0,157.52,157.48,7.59710944]
[1750104208497,26.0,157.52,157.44,7.59710944]
[1750104208803,33.59710944,157.52,157.48,7.59710944]
[1750104209098,26.0,157.52,157.48,7.59710944]
[1750104209601,26.0,157.52,157.49,6.34960949]
[1750104209907,46.21674886,157.54,157.5,7.59710944]
[1750104210116,1.5671,157.54,157.5,7.59710944]
[1750104210279,1.5671,157.54,157.51,7.59710944]
[1750104210614,24.44965358,157.55,157.52,7.59710944]
[1750104210615,10.36302686,157.55,157.52,7.59710944]
[1750104210778,5.72,157.55,157.52,7.59710944]
[1750104210978,10.36302686,157.55,157.52,7.59710944]
[1750104211201,10.36365178,157.55,157.52,7.59710944]
[1750104211586,10.36365178,157.55,157.52,13.94539558]
[1750104213304,5.72,157.55,157.52,13.94539558]
[1750104214192,5.72,157.55,157.54,7.59710944]
[1750104214509,4.65093898,157.57,157.54,7.59710944]
[1750104216009,4.65093898,157.57,157.54,13.94446427]
[1750104217920,27.6047,157.58,157.54,13.94446427]
[1750104219392,27.6047,157.58,157.47,113.85049363]
[1750104219600,2.33748797,157.57,157.48,22.22504445]
[1750104219892,35.20180944,157.58,157.54,7.59710944]
[1750104220305,35.20180944,157.58,157.48,104.32504445]
[1750104220306,2.33713143,157.57,157.53,7.59710944]
[1750104220823,0.14216157,157.54,157.48,6.3500127]
[1750104220995,10.07638974,157.54,157.49,7.59710944]
[1750104221528,7.59710944,157.53,157.48,13.94712214]
[1750104221693,4.67096693,157.52,157.48,13.94712214]
[1750104221894,4.67096693,157.51,157.49,7.59710944]
[1750104222222,14.74875514,157.54,157.49,7.59710944]
[1750104222394,10.0777913,157.54,157.49,7.59710944]
[1750104222715,4.67708383,157.53,157.49,7.59710944]
[1750104222917,4.67708383,157.52,157.49,7.59710944]
[1750104223116,4.67708383,157.51,157.49,7.59710944]
[1750104223315,4.67708383,157.52,157.49,7.59710944]
[1750104223509,4.67708383,157.51,157.49,7.59710944]
[1750104223709,4.67640819,157.52,157.49,7.59710944]
[1750104223913,6.34801001,157.53,157.49,7.59710944]
[1750104223914,4.67640819,157.51,157.49,7.59710944]
[1750104224111,4.67640819,157.52,157.49,7.59710944]
[1750104224303,4.67640819,157.51,157.49,7.59710944]
[1750104224502,6.34801001,157.53,157.49,7.59710944]
[1750104224503,4.67640819,157.5,157.49,7.59710944]
[1750104224714,4.6806618,157.52,157.49,7.59710944]
[1750104224918,4.68158974,157.53,157.51,7.59710944]
[1750104225121,1.6047,157.58,157.52,7.59710944]
[1750104225122,4.68199078,157.57,157.52,7.59710944]
[1750104225419,4.68219653,157.56,157.54,7.59710944]
[1750104225627,4.68219653,157.55,157.54,7.59710944]
[1750104225815,4.68219653,157.55,157.47,108.1]
[1750104226009,2.3409944,157.57,157.54,13.94461662]
[1750104226216,4.68291495,157.56,157.54,13.94461662]
[1750104226419,4.68291495,157.55,157.54,13.94461662]
[1750104227059,4.68291495,157.55,157.53,7.59710944]
[1750104227223,4.68291495,157.54,157.53,7.59710944]
[1750104227528,4.68291495,157.56,157.53,7.59710944]
[1750104227823,4.68291495,157.55,157.53,7.59710944]
[1750104227995,4.68291495,157.54,157.53,7.59710944]
[1750104228198,4.68291495,157.54,157.53,13.94510664]
[1750104228396,4.68291495,157.54,157.53,7.59710944]
[1750104229533,4.68291495,157.54,157.53,13.94510664]
[1750104231001,4.68775228,157.54,157.47,41.87522905]
[1750104231316,4.68775228,157.53,157.48,6.3500127]
[1750104231511,4.68775228,157.52,157.5,7.59710944]
[1750104231831,9.94098558,157.54,157.5,7.59710944]
[1750104232043,14.63143657,157.53,157.48,6.3500127]
[1750104232208,14.63143657,157.52,157.48,13.94712214]
[1750104232408,4.69045099,157.51,157.48,13.94712214]
[1750104232626,4.69045099,157.5,157.48,13.94712214]
[1750104232950,4.69045099,157.49,157.47,7.59710944]
[1750104233229,4.69045099,157.48,157.46,13.94777288]
[1750104233443,9.94098558,157.51,157.47,7.59710944]
[1750104233602,4.68945208,157.5,157.47,7.59710944]